bitfinex-derivatives/quotes_BNBF0:USTF0_20250425
["timestamp","ask_amount","ask_price","bid_price","bid_amount"]
[1745619058174,0.29027455,600.71,598.69,0.30621236]
[1745619058478,0.29027455,600.71,598.44,0.29027455]
[1745619058479,0.29027455,600.71,598.7,0.30621236]
[1745619058675,0.29027455,600.71,598.45,0.30621236]
[1745619058979,0.29027455,600.71,598.46,0.30621236]
[1745619059177,1.27356705,600.77,598.24,1.0591997]
[1745619059374,1.27356705,600.77,598.13,1.0591997]
[1745619059375,1.27356705,600.83,598.25,0.30619962]
[1745619059679,1.27356705,600.83,598.26,0.30619962]
[1745619059879,1.27356705,600.83,598.27,0.30619962]
[1745619060079,1.27356705,600.83,598.28,0.30619962]
[1745619060280,1.27356705,600.83,598.29,0.30619962]
[1745619060478,0.29029029,600.82,598.3,0.30621223]
[1745619060681,0.29029029,600.82,598.31,0.30621223]
[1745619060883,0.29029029,600.82,598.32,0.30621223]
[1745619061183,0.29029029,600.82,598.33,0.30621223]
[1745619061377,0.29029029,600.82,598.34,0.30621223]
[1745619061577,0.29029029,600.82,598.35,0.30620965]
[1745619061776,0.29029029,600.82,598.36,0.30620965]
[1745619061975,0.29029029,600.82,598.37,0.30620965]
[1745619062181,0.29029029,600.82,598.28,0.29029029]
[1745619062182,1.27356705,600.86,598.38,0.30620965]
[1745619062382,1.27356705,600.86,598.39,0.30620965]
[1745619062581,1.27356705,600.86,598.4,0.30620965]
[1745619062782,1.27356705,600.86,598.41,0.30620965]
[1745619062984,1.27356705,600.86,598.42,0.30620965]
[1745619063182,1.27356705,600.86,598.43,0.30620965]
[1745619063382,0.29028666,600.85,598.44,0.30620965]
[1745619063580,0.29028666,600.85,598.45,0.30620965]
[1745619063981,0.29028666,600.85,598.46,0.30620965]
[1745619064181,0.29028666,600.85,598.47,0.30620965]
[1745619064382,1.27356705,600.71,598.48,0.30620965]
[1745619064678,1.27356705,600.71,598.49,0.30620965]
[1745619064884,1.27356705,600.71,598.5,0.30620965]
[1745619065080,1.27356705,600.71,598.51,0.30620965]
[1745619065284,1.27356705,600.71,598.52,0.30620965]
[1745619065479,1.27356705,600.71,598.53,0.30620965]
[1745619065683,1.27356705,600.71,598.54,0.30620965]
[1745619065882,1.27356705,600.71,598.55,0.30620965]
[1745619066178,1.27356705,600.71,598.56,0.30620965]
[1745619066380,1.27356705,600.71,598.34,0.30620965]
[1745619066685,0.29028908,600.7,598.35,0.30620965]
[1745619066885,0.29028908,600.7,598.36,0.30620965]
[1745619067084,0.29028908,600.7,598.37,0.30620965]
[1745619067380,0.29028908,600.7,598.38,0.30620965]
[1745619067581,0.29028908,600.7,598.39,0.30620965]
[1745619067784,0.29028908,600.7,598.33,1.0591997]
[1745619067785,0.29028908,600.7,598.4,0.30620965]
[1745619067986,0.29028908,600.7,598.41,0.30620965]
[1745619068184,0.29028908,600.7,598.37,0.29028908]
[1745619068185,1.27356705,601.13,598.42,0.30620965]
[1745619068383,1.27356705,601.13,598.43,0.30620965]
[1745619068584,1.27356705,601.13,598.44,0.30620965]
[1745619068785,1.27356705,601.13,598.45,0.30620965]
[1745619068980,1.27356705,601.13,598.46,0.30620965]
[1745619069283,1.27356705,601.13,598.47,0.30620965]
[1745619069481,0.29025881,601.12,598.48,0.30620965]
[1745619069681,0.29025881,601.12,598.49,0.30620965]
[1745619069884,0.29025881,601.12,598.5,0.30620965]
[1745619070082,0.29025881,601.12,598.51,0.30620965]
[1745619070281,0.29025881,601.12,598.52,0.30620965]
[1745619070486,0.29025881,601.12,598.53,0.30620965]
[1745619070682,0.29025881,601.12,598.54,0.30620965]
[1745619070884,0.29025881,601.12,598.55,0.30620965]
[1745619071084,0.29025881,601.12,598.42,0.30620965]
[1745619071085,1.27356705,601.11,598.42,0.30620965]
[1745619071284,1.27356705,601.11,598.43,0.30620141]
[1745619071482,1.27356705,601.11,598.44,0.30620141]
[1745619071782,1.27356705,601.11,598.45,0.30620141]
[1745619071985,1.27356705,601.11,598.46,0.30620141]
[1745619072285,1.27356705,601.11,598.47,0.30620141]
[1745619072483,0.29027576,601.1,598.48,0.30620141]
[1745619072688,0.29027576,601.1,598.49,0.30620141]
[1745619072889,0.29027576,601.1,598.43,0.29027576]
[1745619073189,1.27356705,601.06,598.44,0.30619916]
[1745619073385,1.27356705,601.06,598.45,0.30619916]
[1745619073585,1.27356705,601.06,598.46,0.30619916]
[1745619073788,1.27356705,601.06,598.47,0.30619916]
[1745619073989,1.27356705,601.06,598.48,0.30619916]
[1745619074382,0.29024913,601.05,598.49,0.30619916]
[1745619074589,0.29024913,601.05,598.5,0.30619916]
[1745619074790,0.29024913,601.05,598.51,0.30619916]
[1745619075087,0.29024913,601.05,598.52,0.30619916]
[1745619075390,0.29024913,601.05,598.16,0.799]
[1745619075391,1.27356705,601.03,598.53,0.30619916]
[1745619075590,1.27356705,601.03,598.54,0.30619916]
[1745619075890,1.27356705,601.03,598.55,0.30619916]
[1745619076091,1.27356705,601.03,598.48,0.2902806]
[1745619076286,1.27356705,601.03,598.49,0.30618715]
[1745619076484,1.27356705,601.03,598.5,0.30618715]
[1745619076692,1.27356705,601.03,598.51,0.30618715]
[1745619076990,1.27356705,601.03,598.52,0.30618715]
[1745619077192,1.27356705,601.03,598.53,0.30618715]
[1745619077385,1.27356705,601.03,598.54,0.30618715]
[1745619077591,0.29023461,601.02,598.5,0.29023461]
[1745619077791,1.27356705,600.62,598.51,0.30618715]
[1745619079293,1.27356705,600.62,598.5,0.29023461]
[1745619079493,1.27356705,600.62,598.51,0.30620105]
[1745619080495,1.27356705,600.62,598.52,0.30620105]
[1745619080694,1.27356705,600.62,598.45,1.0591997]
[1745619080695,1.27356705,600.62,598.46,0.30620105]
[1745619080895,1.27356705,600.62,598.53,0.30620105]
[1745619081097,1.27356705,600.62,598.17,1.27103964]
[1745619081098,1.27356705,601.12,598.54,0.30620105]
[1745619081292,1.27356705,601.12,598.17,0.30620105]
[1745619081494,0.29028787,600.61,598.51,0.29028787]
[1745619081791,1.27356705,601.12,598.52,0.30620105]
[1745619082097,1.27356705,601.12,598.53,0.30620105]
[1745619082291,1.27356705,601.12,598.17,0.30620105]
[1745619082491,1.27356705,601.12,598.18,0.30620105]
[1745619082690,1.27356705,601.12,598.02,1.0591997]
[1745619082691,1.27356705,601.12,598.19,0.30620105]
[1745619082895,1.27356705,601.12,598.2,0.30620105]
[1745619083097,1.27356705,601.12,598.21,0.30620105]
[1745619083098,0.29024792,601.11,598.21,0.30620105]
[1745619083392,0.29024792,601.11,598.22,0.30620105]
[1745619083596,0.29024792,601.11,598.23,0.30620105]
[1745619083789,0.29024792,601.11,598.24,0.30620105]
[1745619083989,0.29024792,601.11,598.25,0.30620105]
[1745619084192,0.29024792,601.11,598.26,0.30620105]
[1745619084397,0.29024792,601.11,598.27,0.30620105]
[1745619084593,0.29024792,601.11,598.28,0.30620105]
[1745619084790,0.29024792,601.11,598.29,0.30620105]
[1745619084993,0.29024792,601.11,598.3,0.30620105]
[1745619085194,0.29024792,601.11,598.31,0.30620105]
[1745619085490,0.29024792,601.11,598.32,0.30620105]
[1745619085692,1.27356705,601.1,598.23,1.0591997]
[1745619085896,1.27356705,601.1,598.24,0.30615957]
[1745619086094,1.27356705,601.1,598.25,0.30615957]
[1745619086296,1.27356705,601.1,598.26,0.30615957]
[1745619086491,1.27356705,601.1,598.27,0.30615957]
[1745619086695,1.27356705,601.1,598.28,0.30615957]
[1745619086993,1.27356705,601.1,598.23,1.0591997]
[1745619086994,1.27356705,601.1,598.29,0.30615957]
[1745619087198,1.27356705,601.11,598.3,0.30615957]
[1745619087390,1.27356705,601.11,598.31,0.3061611]
[1745619087594,0.29024187,601.09,598.32,0.3061611]
[1745619087796,0.29024187,601.09,598.33,0.3061611]
[1745619087997,0.29024187,601.09,598.34,0.3061611]
[1745619088197,0.29024187,601.09,598.35,0.3061611]
[1745619088394,0.29024187,601.09,598.36,0.3061611]
[1745619088698,0.29024187,601.09,598.37,0.3061611]
[1745619088897,0.29024187,601.09,598.38,0.3061611]
[1745619089099,1.27356705,600.82,598.47,1.0591997]
[1745619089398,1.27356705,600.82,598.48,0.3061611]
[1745619089598,1.27356705,600.82,598.49,0.3061611]
[1745619089794,1.27356705,600.82,598.5,0.3061611]
[1745619089993,1.27356705,600.82,598.51,0.3061611]
[1745619090197,1.27356705,600.82,598.52,0.3061611]
[1745619090397,1.27356705,600.82,598.53,0.3061611]
[1745619090596,0.29024671,600.81,598.54,0.3061611]
[1745619090798,0.29024671,600.81,598.55,0.3061611]
[1745619091000,0.29024671,600.81,598.56,0.3061611]
[1745619091195,0.29024671,600.81,598.57,0.3061611]
[1745619091394,0.29024671,600.81,598.35,0.29024671]
[1745619091395,1.27356705,600.8,598.58,0.3061611]
[1745619091595,1.27356705,600.8,598.59,0.3061611]
[1745619091801,1.27356705,600.8,598.6,0.3061611]
[1745619092002,1.27356705,600.8,598.61,0.3061611]
[1745619092300,1.27356705,600.8,598.62,0.3061611]
[1745619092500,1.27356705,600.8,598.63,0.3061611]
[1745619092701,1.27356705,600.8,598.64,0.3061611]
[1745619092894,1.27356705,600.8,598.65,0.3061611]
[1745619093098,1.27356705,600.8,598.66,0.3061611]
[1745619093296,1.27356705,600.8,598.67,0.3061611]
[1745619093599,0.29023219,600.79,598.68,0.3061611]
[1745619093799,0.29023219,600.79,598.69,0.30616015]
[1745619093997,0.29023219,600.79,598.7,0.30616015]
[1745619094200,0.29023219,600.79,598.71,0.30616015]
[1745619094400,0.29023219,600.79,598.72,0.30616015]
[1745619094603,0.29023219,600.79,598.73,0.30616015]
[1745619094903,0.29023219,600.79,598.74,0.30616015]
[1745619094904,1.27356705,600.7,598.74,0.30616015]
[1745619095201,1.27356705,600.7,598.75,0.30616015]
[1745619095400,1.27356705,600.7,598.76,0.30616015]
[1745619095600,1.27356705,600.7,598.77,0.30616015]
[1745619095801,1.27356705,600.7,598.78,0.30616015]
[1745619095995,1.27356705,600.7,598.79,0.30616015]
[1745619096200,1.27356705,600.7,598.8,0.30616015]
[1745619096495,0.29024429,600.69,598.81,0.30616015]
[1745619096700,0.29024429,600.69,598.82,0.30616015]
[1745619096900,0.29024429,600.69,598.61,1.145]
[1745619097101,0.29024429,600.69,598.62,0.3061597]
[1745619097302,1.27356705,600.57,598.64,1.0591997]
[1745619097497,1.27356705,600.57,598.65,0.3061597]
[1745619097703,1.27356705,600.57,598.66,0.3061597]
[1745619097896,1.27356705,600.57,598.67,0.3061597]
[1745619098101,1.27356705,600.57,598.68,0.3061597]
[1745619098399,1.27356705,600.57,598.69,0.3061597]
[1745619098599,1.27356705,600.57,598.7,0.3061597]
[1745619098797,1.27356705,600.57,598.71,0.3061597]
[1745619098998,1.27356705,600.57,598.72,0.3061597]
[1745619099297,1.27356705,600.57,598.73,0.3061597]
[1745619099500,0.29025639,600.56,598.74,0.3061597]
[1745619099699,0.29025639,600.56,598.75,0.3061597]
[1745619100100,0.29025639,600.56,598.65,0.29025639]
[1745619100304,0.29025639,600.56,598.66,0.3061625]
[1745619101203,1.27356705,600.67,598.66,0.3061625]
[1745619101402,1.27356705,600.67,598.62,0.3061625]
[1745619101698,1.27356705,600.67,598.63,0.3061625]
[1745619101899,1.27356705,600.67,598.62,0.3061625]
[1745619102103,1.27356705,600.67,598.63,0.3061625]
[1745619102304,1.27356705,601.16,598.62,0.3061625]
[1745619102600,0.29024792,600.66,598.63,0.29024792]
[1745619102803,1.27356705,601.16,598.64,0.3061625]
[1745619104005,0.2901862,601.15,598.64,0.3061625]
[1745619104404,0.2901862,601.15,598.63,0.2901862]
[1745619104598,0.2901862,601.15,598.64,0.3061625]
[1745619106506,1.56375325,601.15,598.63,0.2901862]
[1745619106800,1.56375325,601.15,598.64,0.30615256]
[1745619107204,1.27356705,601.15,598.64,0.30615256]
[1745619107503,1.27356705,601.15,598.65,0.30615256]
[1745619107702,1.27356705,601.15,598.62,0.30615256]
[1745619108406,0.29018983,601.14,598.63,0.29018983]
[1745619108705,0.29018983,601.14,598.64,0.30615256]
[1745619110205,1.27356705,601.25,598.64,0.30615256]
[1745619110404,1.27356705,601.25,598.65,0.30615256]
[1745619110605,1.27356705,601.25,598.62,0.30615256]
[1745619110806,1.27356705,601.25,598.63,0.30615256]
[1745619111002,1.27356705,601.25,598.62,0.30615256]
[1745619111406,0.29017773,601.24,598.61,1.145]
[1745619111707,0.29017773,601.24,598.63,0.29017773]
[1745619111899,0.29017773,601.24,598.64,0.30615783]
[1745619112906,1.27356705,601.05,598.64,0.30615783]
[1745619114803,1.27356705,601.06,598.64,0.30615783]
[1745619115307,1.27356705,601.06,598.65,0.30615783]
[1745619115607,1.27356705,601.06,598.66,0.30615783]
[1745619115806,1.27356705,601.06,598.67,0.30615783]
[1745619116007,1.27356705,601.06,598.68,0.30615783]
[1745619116308,1.27356705,601.06,598.69,0.30615783]
[1745619116503,1.27356705,601.06,598.7,0.30615783]
[1745619116702,1.27356705,601.06,598.62,0.30615783]
[1745619116905,1.27356705,600.8,598.63,0.30615783]
[1745619117102,1.27356705,600.8,598.64,0.30615783]
[1745619117305,1.27356705,600.8,598.65,0.30615783]
[1745619117506,0.29023219,600.79,598.66,0.30615783]
[1745619117701,0.29023219,600.79,598.67,0.30615783]
[1745619117902,0.29023219,600.79,598.68,0.30615783]
[1745619118103,0.29023219,600.79,598.69,0.30615783]
[1745619118302,0.29023219,600.79,598.7,0.30615783]
[1745619118709,0.29023219,600.79,598.71,0.30615783]
[1745619118908,0.29023219,600.79,598.72,0.30615783]
[1745619119108,0.29023219,600.79,598.63,0.29023219]
[1745619119109,1.27356705,600.73,598.73,0.30615783]
[1745619119308,1.27356705,600.73,598.64,0.30615783]
[1745619119608,1.27356705,600.73,598.67,0.29022977]
[1745619119809,1.27356705,600.73,598.68,0.3061607]
[1745619120009,1.27356705,600.73,598.69,0.3061607]
[1745619120208,1.27356705,600.73,598.7,0.3061607]
[1745619120508,1.27356705,600.73,598.71,0.3061607]
[1745619120712,1.27356705,600.73,598.72,0.3061607]
[1745619120905,1.27356705,600.73,598.67,0.29022977]
[1745619121104,1.27356705,600.73,598.68,0.30615766]
[1745619121306,1.27356705,600.64,598.69,0.30615766]
[1745619121606,1.27356705,600.64,598.7,0.30615766]
[1745619121810,1.27356705,600.64,598.71,0.30615766]
[1745619122007,1.27356705,600.64,598.72,0.30615766]
[1745619122212,1.27356705,600.64,598.67,0.29022977]
[1745619122213,1.27356705,600.64,598.61,1.145]
[1745619122511,1.27356705,600.64,598.62,0.3061573]
[1745619122711,1.27356705,600.64,598.63,0.3061573]
[1745619122914,1.27356705,600.64,598.64,0.3061573]
[1745619123109,1.27356705,600.64,598.65,0.3061573]
[1745619123515,0.29025155,600.63,598.66,0.3061573]
[1745619123714,0.29025155,600.63,598.67,0.3061573]
[1745619123912,0.29025155,600.63,598.68,0.3061573]
[1745619124112,0.29025155,600.63,598.69,0.3061573]
[1745619124408,0.29025155,600.63,598.7,0.3061573]
[1745619124614,0.29025155,600.63,598.65,0.29025155]
[1745619124615,0.29025155,600.63,598.71,0.3061573]
[1745619124811,0.29025155,600.63,598.72,0.3061573]
[1745619125011,0.29025155,600.63,598.73,0.3061573]
[1745619125216,1.27356705,600.68,598.74,0.3061573]
[1745619125514,1.27356705,600.68,598.75,0.3061573]
[1745619125715,1.27356705,600.68,598.62,0.3061573]
[1745619126015,0.29024671,600.67,598.69,0.29024671]
[1745619126314,0.29024671,600.67,598.7,0.3061573]
[1745619126515,1.27356705,600.52,598.71,0.3061573]
[1745619126715,1.27356705,600.52,598.72,0.3061573]
[1745619126912,1.27356705,600.52,598.73,0.3061573]
[1745619127108,1.27356705,600.52,598.69,1.0591997]
[1745619127109,1.27356705,600.52,598.74,0.30615699]
[1745619127313,1.27356705,600.52,598.75,0.30615699]
[1745619127511,1.27356705,600.52,598.76,0.30615699]
[1745619127712,1.27356705,600.52,598.77,0.30615699]
[1745619127909,1.27356705,600.52,598.78,0.30615699]
[1745619128114,1.27356705,600.52,598.7,0.30615699]
[1745619128311,1.27356705,600.52,598.71,0.30615699]
[1745619128512,1.27356705,600.52,598.72,0.30615699]
[1745619128818,1.27356705,600.52,598.73,0.30615495]
[1745619129011,1.27356705,600.52,598.74,0.30615495]
[1745619129215,0.29025639,600.51,598.75,0.30615495]
[1745619129416,0.29025639,600.51,598.76,0.30615495]
[1745619129613,0.29025639,600.51,598.77,0.30615495]
[1745619129817,0.29025639,600.51,598.78,0.30615495]
[1745619130114,0.29025639,600.51,598.79,0.30615495]
[1745619130419,0.29025639,600.51,598.8,0.30615495]
[1745619130617,0.29025639,600.51,598.7,0.30615495]
[1745619130818,0.29025639,600.51,598.71,0.30615495]
[1745619131021,0.29025639,600.51,598.72,0.30615495]
[1745619131219,1.27356705,600.65,598.73,0.30615495]
[1745619131519,1.27356705,600.65,598.74,0.30615495]
[1745619131719,1.27356705,600.65,598.75,0.30615495]
[1745619131920,1.27356705,600.65,598.61,1.145]
[1745619132123,1.27356705,600.65,598.62,0.3061573]
[1745619132520,0.29027697,600.64,598.62,0.3061573]
[1745619132715,0.29027697,600.64,598.63,0.29027697]
[1745619133020,0.29027697,600.64,598.64,0.3061573]
[1745619134215,1.27356705,600.66,598.64,0.3061573]
[1745619134419,1.27356705,600.66,598.63,0.3061573]
[1745619134615,1.27356705,600.66,598.64,0.3061573]
[1745619134824,1.27356705,600.66,598.63,0.3061573]
[1745619135021,1.27356705,601.24,598.63,0.3061573]
[1745619135220,1.27356705,601.24,598.64,0.30620469]
[1745619135416,0.29020435,601.23,598.62,0.30620469]
[1745619135719,0.29020435,601.23,598.63,0.29020435]
[1745619135920,0.29020435,601.23,598.64,0.30620469]
[1745619137320,1.27356705,601.26,598.64,0.30620469]
[1745619137518,1.27356705,601.26,598.62,0.30620469]
[1745619138424,0.29019346,601.25,598.61,1.145]
[1745619138622,0.29019346,601.25,598.63,0.29019346]
[1745619138922,0.29019346,601.25,598.64,0.30619688]
[1745619140122,0.29019346,601.25,598.63,0.29019346]
[1745619140318,0.29019346,601.25,598.64,0.30619804]
[1745619141822,1.27356705,600.95,598.65,0.30619804]
[1745619142018,1.27356705,600.95,598.66,0.30619804]
[1745619142221,1.27356705,600.95,598.67,0.30619804]
[1745619142517,1.27356705,600.95,598.68,0.30619804]
[1745619142723,1.27356705,600.95,598.69,0.30619804]
[1745619142923,1.27356705,600.95,598.7,0.30619804]
[1745619143125,1.27356705,600.95,598.71,0.30619804]
[1745619143319,1.27356705,600.95,598.72,0.30619804]
[1745619143520,1.27356705,600.95,598.73,0.30619804]
[1745619143719,1.27356705,600.67,598.74,0.30619804]
[1745619143921,1.27356705,600.67,598.75,0.30619804]
[1745619144120,1.27356705,600.67,598.76,0.30619804]
[1745619144421,1.27356705,600.67,598.77,0.30619804]
[1745619144621,1.27356705,600.67,598.78,0.30619804]
[1745619144828,1.27356705,600.67,598.79,0.30619804]
[1745619145024,1.27356705,600.67,598.8,0.30614398]
[1745619145220,1.27356705,600.67,598.81,0.30614398]
[1745619145425,1.27356705,600.67,598.73,1.061]
[1745619145426,1.27356705,600.67,598.82,0.30614398]
[1745619145726,1.27356705,600.67,598.83,0.30614398]
[1745619145926,1.27356705,600.67,598.84,0.30614398]
[1745619146125,1.27356705,600.67,598.85,0.30614398]
[1745619146328,2.16253272,601.29,598.73,1.061]
[1745619146329,1.27356705,600.58,598.86,0.30614398]
[1745619146527,1.27356705,600.58,598.73,1.061]
[1745619146729,1.27356705,600.58,598.74,0.30614591]
[1745619146931,1.27356705,600.58,598.75,0.30614591]
[1745619147130,1.27356705,600.58,598.76,0.30614591]
[1745619147327,0.29023461,600.57,598.77,0.30614591]
[1745619147524,0.29023461,600.57,598.78,0.30614591]
[1745619147725,0.29023461,600.57,598.79,0.30614591]
[1745619147930,0.29023461,600.57,598.8,0.30614591]
[1745619148127,0.29023461,600.57,598.81,0.30614591]
[1745619148325,0.29023461,600.57,598.82,0.30614591]
[1745619148527,0.29023461,600.57,598.83,0.30614591]
[1745619148728,0.29023461,600.57,598.74,0.30614591]
[1745619148926,0.29023461,600.57,598.75,0.30614591]
[1745619149131,0.29023461,600.57,598.76,0.30614591]
[1745619149327,1.27356705,600.72,598.77,0.30614591]
[1745619149532,1.27356705,600.72,598.78,0.30614591]
[1745619149733,1.27356705,600.72,598.73,1.061]
[1745619150035,1.56373632,600.72,598.74,0.30606186]
[1745619150231,1.56373632,600.72,598.75,0.30606186]
[1745619150431,0.29016927,600.72,598.76,0.30606186]
[1745619150627,0.29016927,600.72,598.77,0.30606186]
[1745619150833,0.29016927,600.72,598.78,0.30606186]
[1745619151131,0.29016927,600.72,598.79,0.30606186]
[1745619151333,0.29016927,600.72,598.8,0.30606186]
[1745619151533,0.29016927,600.72,598.81,0.30606186]
[1745619151728,0.29016927,600.72,598.82,0.30606186]
[1745619152033,0.29016927,600.72,598.83,0.30606186]
[1745619152227,1.27356705,600.74,598.84,0.30606186]
[1745619152428,1.27356705,600.74,598.85,0.30606186]
[1745619152628,1.27356705,600.74,598.86,0.30606186]
[1745619152829,0.29016443,600.73,598.87,0.30606186]
[1745619153232,0.29016443,600.73,598.88,0.30606186]
[1745619153432,0.29016443,600.73,598.89,0.30606186]
[1745619153632,0.29016443,600.73,598.9,0.30606186]
[1745619153835,0.29016443,600.73,598.91,0.30606186]
[1745619154033,0.29016443,600.73,598.92,0.30606186]
[1745619154229,0.29016443,600.73,598.76,0.29016443]
[1745619154230,0.29016443,600.73,598.93,0.30606186]
[1745619154534,0.29016443,600.73,598.94,0.30606186]
[1745619154830,0.29016443,600.73,598.95,0.30606186]
[1745619155034,0.29016443,600.73,598.96,0.30606186]
[1745619155234,1.27356705,601.11,598.97,0.30606186]
[1745619155436,1.27356705,601.11,598.98,0.30606186]
[1745619155637,0.29011605,600.73,598.99,0.30606186]
[1745619155833,1.27356705,601.08,599.0,0.30606186]
[1745619156032,1.27356705,601.08,599.01,0.30606186]
[1745619156236,1.27356705,601.08,598.84,0.29011605]
[1745619156431,1.27356705,601.08,598.85,0.30602061]
[1745619156635,1.27356705,601.08,598.86,0.30602061]
[1745619156837,0.29011,601.07,598.87,0.30602061]
[1745619157136,0.29011,601.07,598.88,0.30602061]
[1745619157336,0.29011,601.07,598.89,0.30602061]
[1745619157537,0.29011,601.07,598.84,0.29011605]
[1745619157538,0.29011,601.07,598.9,0.30602061]
[1745619157837,0.29011,601.07,598.91,0.30602061]
[1745619158030,0.29011,601.07,598.92,0.30602061]
[1745619158235,1.27356705,601.15,598.93,0.30602061]
[1745619158433,1.27356705,601.15,598.94,0.30602061]
[1745619158636,0.29011484,601.14,598.95,0.30602061]
[1745619158833,0.29011484,601.14,598.96,0.30602061]
[1745619159037,0.29011484,601.14,598.97,0.30602061]
[1745619159237,0.29011484,601.14,598.98,0.30602061]
[1745619159434,0.29011484,601.14,598.99,0.30602061]
[1745619159638,0.29011484,601.14,599.0,0.30602444]
[1745619160034,0.29011484,601.14,599.01,0.30602444]
[1745619160234,0.29011484,601.14,599.02,0.30602444]
[1745619160437,0.29011484,601.14,599.03,0.30602444]
[1745619160633,0.29011484,601.14,599.04,0.30602444]
[1745619160838,1.27356705,601.1,599.05,0.30602444]
[1745619161040,1.27356705,601.1,599.06,0.30602444]
[1745619161234,1.27356705,601.1,598.88,0.29011484]
[1745619161235,1.27356705,601.1,598.65,1.0591997]
[1745619161440,1.27356705,601.1,598.66,0.30603652]
[1745619161735,0.29013056,601.09,598.67,0.30603652]
[1745619161934,0.29013056,601.09,598.68,0.30603652]
[1745619162138,0.29013056,601.09,598.69,0.30603652]
[1745619162339,0.29013056,601.09,598.7,0.30603652]
[1745619162539,0.29013056,601.09,598.71,0.30603652]
[1745619162739,0.29013056,601.09,598.72,0.30603652]
[1745619162940,0.29013056,601.09,598.72,1.136]
[1745619163135,0.29013056,601.09,598.73,0.30603322]
[1745619163342,1.27356705,601.07,598.74,1.03056288]
[1745619163639,1.27356705,601.07,598.75,1.03056288]
[1745619163837,1.27356705,601.07,598.76,1.03056288]
[1745619164040,1.27356705,601.07,598.77,1.03056288]
[1745619164237,1.27356705,601.07,598.78,1.03056288]
[1745619164539,1.27356705,601.07,598.72,1.136]
[1745619164740,0.29011847,601.06,598.73,1.03054118]
[1745619164939,0.29011847,601.06,598.74,1.03054118]
[1745619165140,0.29011847,601.06,598.75,1.03054118]
[1745619165441,1.27356705,600.95,598.76,1.03054118]
[1745619165641,1.27356705,600.95,598.77,1.03054118]
[1745619165838,1.27356705,600.95,598.78,1.03054118]
[1745619166040,1.27356705,600.95,598.79,1.03054118]
[1745619166239,1.27356705,600.95,598.8,0.30602093]
[1745619166436,1.27356705,600.95,598.81,0.30602093]
[1745619166637,1.27356705,600.95,598.82,0.30602093]
[1745619166835,1.27356705,600.95,598.83,0.30602093]
[1745619167040,1.27356705,600.95,598.84,0.30602093]
[1745619167241,1.27356705,600.97,598.85,0.30602093]
[1745619167443,1.27356705,600.97,598.86,0.30602093]
[1745619167738,0.29013419,600.94,598.87,0.30602093]
[1745619167942,0.29013419,600.94,598.88,0.30602093]
[1745619168141,0.29013419,600.94,598.89,0.30602093]
[1745619168340,0.29013419,600.94,598.9,0.30602093]
[1745619168542,0.29013419,600.94,598.91,0.30602093]
[1745619168744,0.29013419,600.94,598.92,0.30602093]
[1745619168942,0.29013419,600.94,598.93,0.30602093]
[1745619169142,0.29013419,600.94,598.94,0.30602093]
[1745619169442,0.29013419,600.94,598.95,0.30602093]
[1745619169643,0.29013419,600.94,598.96,0.30602093]
[1745619169843,0.29013419,600.94,598.97,0.30602093]
[1745619170142,0.29013419,600.94,598.98,0.30602093]
[1745619170441,0.29013419,600.94,598.99,0.30602093]
[1745619170643,0.29013419,600.94,599.0,0.30602093]
[1745619170843,0.29013419,600.94,598.76,0.29013419]
[1745619170844,0.29013419,600.94,599.01,0.30602093]
[1745619171044,0.29013419,600.94,599.02,0.30602093]
[1745619171244,0.29013419,600.94,598.76,0.29013419]
[1745619171443,0.29013419,600.94,598.77,0.30602605]
[1745619171644,0.29013419,600.94,598.78,0.30602605]
[1745619171944,0.29013419,600.94,598.79,0.30602605]
[1745619172144,0.29013419,600.94,598.8,0.30602605]
[1745619172344,0.29013419,600.94,598.76,0.29013419]
[1745619172345,0.29013419,600.94,598.81,0.30602605]
[1745619172546,0.29013419,600.94,598.82,0.30602605]
[1745619172741,0.29013419,600.94,598.83,0.30602605]
[1745619172944,0.29013419,600.94,598.84,0.3060258]
[1745619173145,0.29013419,600.94,598.85,0.3060258]
[1745619173345,1.27356705,601.07,598.86,0.3060258]
[1745619173547,0.29011847,600.93,598.87,0.3060258]
[1745619173739,0.29011847,600.93,598.88,0.3060258]
[1745619173942,1.27356705,601.07,598.89,0.3060258]
[1745619174142,1.27356705,601.07,598.9,0.3060258]
[1745619174341,1.27356705,601.07,598.91,0.3060258]
[1745619174645,0.29011363,601.06,598.92,0.30602746]
[1745619174845,0.29011363,601.06,598.93,0.30602746]
[1745619175145,0.29011363,601.06,598.94,0.30602746]
[1745619175343,0.29011363,601.06,598.95,0.30602746]
[1745619175543,0.29011363,601.06,598.96,0.30602746]
[1745619175745,0.29011363,601.06,598.97,0.30602746]
[1745619175946,0.29011363,601.06,598.98,0.30602746]
[1745619176144,0.29011363,601.06,598.99,0.30602746]
[1745619176450,1.27356705,601.1,599.0,0.30602611]
[1745619176643,1.27356705,601.1,599.01,0.30602611]
[1745619176844,1.27356705,601.1,599.02,0.30602611]
[1745619177048,1.27356705,601.1,599.03,0.30602611]
[1745619177349,1.27356705,601.1,599.04,0.30602611]
[1745619177549,0.29010758,601.09,599.05,0.30602611]
[1745619177742,0.29010758,601.09,599.06,0.30602611]
[1745619177946,0.29010758,601.09,599.07,0.30602611]
[1745619178144,0.29010758,601.09,599.08,0.30602611]